fUST/lending_fUST_20260117
["ID","MTS","AMOUNT","RATE_DAILY","PERIOD"]
[402265990,1768637433099,-276.73,0.00017103,24]
[402265991,1768637433109,-276.73,0.00017103,24]
[402265992,1768637433118,-276.73,0.00017103,24]
[402265993,1768637433128,-276.69,0.00017103,24]
[402265994,1768637433138,-405.97336672,0.00017203,24]
[402265995,1768637433148,-1191.55085986,0.00017437,2]
[402265996,1768637433158,-155.7227977,0.00017489,2]
[402265997,1768637433169,-153.0,0.00017489,2]
[402265998,1768637433179,-405.97336672,0.00017537,28]
[402265999,1768637433189,-580.9454955,0.00017593,2]
[402266000,1768637433199,-304.9869532,0.00017593,2]
[402266001,1768637433209,-304.9869532,0.00017593,2]
[402266002,1768637433221,-302.2567273,0.00017593,2]
[402266003,1768637433231,-153.4,0.00017599,2]
[402266004,1768637433242,-1041.66666667,0.00017674,2]
[402266005,1768637433251,-2100.0,0.00017808,7]
[402266006,1768637433261,-405.97336672,0.00017871,31]
[402266007,1768637433271,-30000.0,0.00017885,2]
[402266008,1768637433280,-445.202766,0.00017885,2]
[402266009,1768637433290,-2150.738,0.00017885,2]
[402266010,1768637433299,-162.380719,0.00017885,2]
[402266011,1768637433309,-168.3888056,0.00017885,2]
[402266012,1768637433318,-174.61919141,0.00017885,2]
[402266013,1768637433328,-181.08010149,0.00017885,2]
[402266014,1768637433339,-187.78006525,0.00017885,2]
[402266015,1768637433348,-194.72792766,0.00017885,2]
[402266016,1768637433358,-201.93286099,0.00017885,2]
[402266017,1768637433368,-209.40437684,0.00017885,2]
[402266018,1768637433378,-217.15233878,0.00017885,2]
[402266019,1768637433388,-225.18697532,0.00017885,2]
[402266020,1768637433398,-347.37474335,0.00017885,2]
[402266021,1768637433408,-417.0,0.00017941,2]
[402266022,1768637433418,-417.0,0.00017941,2]
[402266023,1768637433427,-820.818,0.00017941,2]
[402266024,1768637433437,-199.164,0.00017941,2]
[402266025,1768637433447,-265.87963126,0.00017945,2]
[402266026,1768637433457,-602.3409351,0.00018078,2]
[402266027,1768637433466,-153.0,0.00018078,2]
[402266028,1768637433476,-300.0,0.00018082,4]
[402266029,1768637433486,-151.0,0.000181,2]
[402266030,1768637433496,-151.0,0.000181,2]
[402266031,1768637433506,-151.0,0.000181,2]
[402266032,1768637433516,-151.0,0.000181,2]
[402266033,1768637433525,-151.0,0.000181,2]
[402266034,1768637433535,-151.0,0.000181,2]
[402266035,1768637433544,-151.0,0.000181,2]
[402266036,1768637433554,-151.0,0.000181,2]
[402266037,1768637433564,-151.0,0.000181,2]
[402266038,1768637433574,-151.0,0.000181,2]
[402266039,1768637433583,-472.74778443,0.00018104,2]
[402266040,1768637433593,-509.16462197,0.00018107,2]
[402266041,1768637433602,-500.0,0.00018107,2]
[402266042,1768637433612,-243.57197513,0.00018107,2]
[402266043,1768637433622,-272.04486864,0.00018107,2]
[402266044,1768637433632,-232.09885158,0.00018107,2]
[402266045,1768637433642,-534.1028375,0.00018107,2]
[402266046,1768637433652,-500.0,0.00018107,2]
[402266047,1768637433661,-500.0,0.00018107,2]
[402266048,1768637433671,-500.0,0.00018107,2]
[402266049,1768637433681,-500.0,0.00018107,2]
[402266050,1768637433691,-500.0,0.00018107,2]
[402266051,1768637433700,-500.0,0.00018107,2]
[402266052,1768637433710,-500.0,0.00018107,2]
[402266053,1768637433719,-500.0,0.00018107,2]
[402266054,1768637433729,-500.0,0.00018107,2]
[402266055,1768637433738,-584.95135038,0.00018107,2]
[402266056,1768637433747,-500.0,0.00018107,2]
[402266057,1768637433756,-500.0,0.00018107,2]
[402266058,1768637433766,-500.0,0.00018107,2]
[402266059,1768637433776,-500.0,0.00018107,2]
[402266060,1768637433785,-500.0,0.00018107,2]
[402266061,1768637433795,-500.0,0.00018107,2]
[402266062,1768637433805,-500.0,0.00018107,2]
[402266063,1768637433814,-500.0,0.00018107,2]
[402266064,1768637433823,-170.50038259,0.00018107,2]
[402266065,1768637433833,-62881.25902054,0.00018108,2]
[402266066,1768637433846,-475.4221411,0.00018108,2]
[402266101,1768637438339,-4532.19186804,0.00018108,2]
[402266102,1768637438351,-887338.1174985,0.00018108,2]
[402266103,1768637438363,-5773.44047748,0.00018108,2]
[402266104,1768637438375,-2513.30305114,0.00018108,2]
[402266105,1768637438391,-36486.2659432,0.00018108,2]
[402266106,1768637438401,-405.97336672,0.00018204,35]
[402266107,1768637438410,-1191.55085982,0.00018258,2]
[402266108,1768637438420,-153.4,0.00018259,2]
[402266109,1768637438430,-1287.0,0.00018308,5]
[402266110,1768637438441,-530.0,0.00018308,5]
[402266111,1768637438451,-337.0,0.00018308,5]
[402266112,1768637438462,-153.0,0.00018311,2]
[402266113,1768637438473,-290.5955616,0.00018311,2]
[402266114,1768637438483,-14161.98340071,0.00018433,2]
[402266115,1768637438494,-6429.496537,0.00018433,2]
[402266116,1768637438506,-6174.40484138,0.00018433,2]
[402266326,1768637446492,-5000.0,0.00017927,2]
[402266327,1768637446502,-4344.11522091,0.00018433,2]
[402266328,1768637446512,-461.67526834,0.00018433,2]
[402266329,1768637446521,-2230.315306,0.00018433,2]
[402266330,1768637446531,-795.47171845,0.00018494,2]
[402266331,1768637446540,-373.13876823,0.00018494,2]
[402266332,1768637446549,-1008.83224618,0.00018494,2]
[402266334,1768637446721,-186.95422982,0.00018494,2]
[402266336,1768637948064,-5000.0,0.00013158,2]
[402266337,1768637948087,-5000.0,0.00013291,2]
[402266338,1768637948110,-184.5169456,0.00013493,2]
[402266339,1768637948131,-582.03960886,0.00013698,2]
[402266340,1768637951691,5000.0,0.00013699,2]
[402266341,1768637959933,5000.0,0.00013699,2]
[402266342,1768637976179,5000.0,0.00013699,2]
[402266343,1768637984318,5000.0,0.00013699,2]
[402266344,1768638000038,5000.0,0.00013699,2]
[402266345,1768638008301,5000.0,0.00013699,2]
[402266346,1768638025511,5000.0,0.00013699,2]
[402266347,1768638033676,5000.0,0.00013699,2]
[402266348,1768638050202,5000.0,0.00013699,2]
[402266349,1768638058498,5000.0,0.00013699,2]
[402266350,1768638073835,5000.0,0.00013699,2]
[402266351,1768638082066,5000.0,0.00013699,2]
[402266352,1768638098202,5000.0,0.00013699,2]
[402266353,1768638106317,5000.0,0.00013699,2]
[402266354,1768638122374,5000.0,0.00013699,2]
[402266355,1768638123850,233.44344554,0.00013273,2]
[402266380,1768638638632,-5000.0,0.00012497,2]
[402266381,1768638638646,-597.0,0.00012497,2]
[402266382,1768638638656,-5000.0,0.00012623,2]
[402266383,1768638638665,-180.82660669,0.00012815,2]
[402266384,1768638638675,-277.3195286,0.00013273,2]
[402266385,1768638638685,-163.34818571,0.00013273,2]
[402266386,1768638638696,-160.0,0.00013699,2]
[402266387,1768638638706,-198.2,0.00013699,2]
[402266388,1768638638716,-500.0,0.00013699,2]
[402266389,1768638638726,-158.24290172,0.00013699,2]
[402266390,1768638638735,-91983.9782656,0.00013784,2]
[402266391,1768638638745,-3982.72055545,0.00014247,2]
[402266392,1768638638754,-1000.0,0.00014247,2]
[402266393,1768638638764,-157.2205694,0.0001453,2]
[402266394,1768638638774,-213.37539589,0.00014815,2]
[402266395,1768638638784,-403.96853636,0.000149,2]
[402266396,1768638638793,-403.96853636,0.000149,2]
[402266397,1768638638803,-403.96853636,0.000149,2]
[402266398,1768638638812,-159.67418413,0.00014979,2]
[402266399,1768638638822,-272.3701998,0.00015227,2]
[402266400,1768638638832,-1501.88474,0.000154,2]
[402266401,1768638638842,-293.89,0.0001599,3]
[402266402,1768638638852,-5000.0,0.00015999,2]
[402266403,1768638638862,-40000.0,0.00016,4]
[402266404,1768638638872,-500.0,0.00016666,2]
[402266405,1768638638882,-500.0,0.00016666,2]
[402266406,1768638638891,-500.0,0.00016666,2]
[402266407,1768638638901,-210.98461457,0.00016666,2]
[402266408,1768638638910,-443.401559,0.00016666,2]
[402266409,1768638638919,-500.0,0.00016666,2]
[402266410,1768638638929,-500.0,0.00016666,2]
[402266411,1768638638939,-310.71744619,0.00016666,2]
[402266412,1768638638948,-532.47593262,0.00016666,2]
[402266413,1768638638958,-500.0,0.00016666,2]
[402266414,1768638638968,-57992.6618283,0.00016667,2]
[402266415,1768638638977,-245.9241851,0.00016815,2]
[402266416,1768638638987,-249.25942884,0.00016989,2]
[402266417,1768638638997,-540.43140805,0.00016989,2]
[402266418,1768638639006,-583.3365809,0.00016989,2]
[402266419,1768638639016,-100000.0,0.0001699,2]
[402266420,1768638639026,-587.78,0.0001736,3]
[402266421,1768638639035,-151.0,0.000175,2]
[402266422,1768638639046,-500.0,0.00017597,2]
[402266423,1768638639056,-535.05008355,0.00017597,2]
[402266424,1768638639066,-151.0,0.000176,2]
[402266425,1768638639076,-159.77326382,0.0001763,7]
[402266426,1768638639086,-500.0,0.0001763,7]
[402266427,1768638639095,-500.0,0.0001763,7]
[402266428,1768638639104,-162.380719,0.00017698,2]
[402266429,1768638639114,-30000.0,0.00017698,2]
[402266430,1768638639123,-168.3888056,0.00017698,2]
[402266431,1768638639133,-445.202766,0.00017698,2]
[402266432,1768638639143,-174.61919141,0.00017698,2]
[402266433,1768638639153,-181.08010149,0.00017698,2]
[402266434,1768638639163,-187.78006525,0.00017698,2]
[402266435,1768638639173,-194.72792766,0.00017698,2]
[402266436,1768638639182,-201.93286099,0.00017698,2]
[402266437,1768638639192,-209.40437684,0.00017698,2]
[402266438,1768638639202,-217.15233878,0.00017698,2]
[402266439,1768638639211,-225.18697532,0.00017698,2]
[402266440,1768638639221,-233.51889341,0.00017698,2]
[402266441,1768638639230,-242.15909246,0.00017698,2]
[402266442,1768638639239,-251.11897888,0.00017698,2]
[402266443,1768638639249,-260.4103811,0.00017698,2]
[402266444,1768638639258,-270.0455652,0.00017698,2]
[402266445,1768638639268,-2150.738,0.00017698,2]
[402266446,1768638639278,-280.03725112,0.00017698,2]
[402266447,1768638639288,-290.39862941,0.00017698,2]
[402266448,1768638639298,-301.14337869,0.00017698,2]
[402266449,1768638639307,-2000.0,0.00017698,2]
[402266450,1768638639317,-2000.0,0.00017698,2]
[402266451,1768638639327,-2000.0,0.00017698,2]
[402266452,1768638639336,-225.94082858,0.00017698,2]
[402266453,1768638639348,-1041.66666667,0.00017699,2]
[402266454,1768638639358,-151.0,0.000177,2]
[402266455,1768638639367,-642.90164964,0.00017767,7]
[402266456,1768638639377,-500.0,0.00017767,7]
[402266457,1768638639387,-151.0,0.000178,2]
[402266458,1768638639397,-168.08810114,0.00017804,2]
[402266459,1768638639407,-2000.0,0.00017808,7]
[402266460,1768638639417,-153.0,0.00017836,2]
[402266461,1768638639426,-602.3409351,0.00017836,2]
[402266462,1768638639436,-513848.99994575,0.00017889,2]
[402266463,1768638639449,-486151.00005425,0.00017889,2]
[402266464,1768638639459,-500.0,0.00017904,7]
[402266465,1768638639469,-4517.2462658,0.0001807,2]
[402266466,1768638639479,-231.08944238,0.00018177,2]
[402266467,1768638639489,-500.0,0.00018178,7]
[402266468,1768638639499,-500.0,0.00018178,7]
[402266469,1768638639508,-500.0,0.00018178,7]
[402266470,1768638639518,-500.0,0.00018178,7]
[402266471,1768638639528,-500.0,0.00018178,7]
[402266472,1768638639537,-500.0,0.00018178,7]
[402266473,1768638639547,-500.0,0.00018178,7]
[402266474,1768638639557,-500.0,0.00018178,7]
[402266475,1768638639566,-500.0,0.00018178,7]
[402266476,1768638639576,-500.0,0.00018178,7]
[402266477,1768638639590,-500.0,0.00018178,7]
[402266478,1768638639600,-500.0,0.00018178,7]
[402266479,1768638639609,-500.0,0.00018178,7]
[402266480,1768638639619,-500.0,0.00018178,7]
[402266481,1768638639629,-500.0,0.00018178,7]
[402266482,1768638639638,-500.0,0.00018178,7]
[402266483,1768638639648,-500.0,0.00018178,7]
[402266484,1768638639657,-500.0,0.00018178,7]
[402266485,1768638639667,-500.0,0.00018178,7]
[402266486,1768638639677,-500.0,0.00018178,7]
[402266487,1768638639686,-500.0,0.00018178,7]
[402266488,1768638639696,-500.0,0.00018178,7]
[402266489,1768638639706,-500.0,0.00018178,7]
[402266490,1768638639715,-500.0,0.00018178,7]
[402266491,1768638639724,-500.0,0.00018178,7]
[402266492,1768638639734,-500.0,0.00018178,7]
[402266493,1768638639744,-500.0,0.00018178,7]
[402266494,1768638639754,-500.0,0.00018178,7]
[402266495,1768638639764,-500.0,0.00018178,7]
[402266496,1768638639774,-500.0,0.00018178,7]
[402266497,1768638639783,-500.0,0.00018178,7]
[402266498,1768638639793,-500.0,0.00018178,7]
[402266499,1768638639802,-500.0,0.00018178,7]
[402266500,1768638639812,-500.0,0.00018178,7]
[402266501,1768638639823,-500.0,0.00018178,7]
[402266502,1768638639833,-500.0,0.00018178,7]
[402266503,1768638639843,-500.0,0.00018178,7]
[402266504,1768638639854,-500.0,0.00018178,7]
[402266505,1768638639864,-500.0,0.00018178,7]
[402266506,1768638639874,-500.0,0.00018178,7]
[402266507,1768638639884,-500.0,0.00018178,7]
[402266508,1768638639895,-500.0,0.00018178,7]
[402266509,1768638639905,-500.0,0.00018178,7]
[402266510,1768638639916,-500.0,0.00018178,7]
[402266511,1768638639925,-500.0,0.00018178,7]
[402266512,1768638639935,-500.0,0.00018178,7]
[402266513,1768638639945,-500.0,0.00018178,7]
[402266514,1768638639957,-500.0,0.00018178,7]
[402266515,1768638639966,-500.0,0.00018178,7]
[402266516,1768638639976,-500.0,0.00018178,7]
[402266517,1768638639986,-500.0,0.00018178,7]
[402266518,1768638639995,-500.0,0.00018178,7]
[402266519,1768638640005,-500.0,0.00018178,7]
[402266520,1768638640015,-500.0,0.00018178,7]
[402266521,1768638640025,-500.0,0.00018178,7]
[402266522,1768638640035,-478.69,0.00018178,7]
[402266523,1768638640045,-500.0,0.00018178,7]
[402266524,1768638640055,-500.0,0.00018178,7]
[402266525,1768638640064,-500.0,0.00018178,7]
[402266526,1768638640074,-500.0,0.00018178,7]
[402266527,1768638640083,-500.0,0.00018178,7]
[402266528,1768638640093,-500.0,0.00018178,7]
[402266529,1768638640103,-500.0,0.00018178,7]
[402266530,1768638640113,-500.0,0.00018178,7]
[402266531,1768638640122,-500.0,0.00018178,7]
[402266532,1768638640132,-500.0,0.00018178,7]
[402266533,1768638640142,-500.0,0.00018178,7]
[402266534,1768638640152,-500.0,0.00018178,7]
[402266535,1768638640162,-500.0,0.00018178,7]
[402266536,1768638640171,-500.0,0.00018178,7]
[402266537,1768638640182,-500.0,0.00018178,7]
[402266538,1768638640191,-500.0,0.00018178,7]
[402266539,1768638640201,-500.0,0.00018178,7]
[402266540,1768638640210,-500.0,0.00018178,7]
[402266541,1768638640220,-500.0,0.00018178,7]
[402266542,1768638640230,-500.0,0.00018178,7]
[402266543,1768638640240,-500.0,0.00018178,7]
[402266544,1768638640250,-500.0,0.00018178,7]
[402266545,1768638640259,-31110.0,0.00018246,2]
[402266546,1768638640269,-461.67526834,0.00018246,2]
[402266547,1768638640279,-2230.315306,0.00018246,2]
[402266548,1768638640288,-929.72969977,0.00018303,2]
[402266549,1768638640298,-3178.70498694,0.00018314,2]
[402266550,1768638640308,-204.31722904,0.00018314,2]
[402266551,1768638640318,-817.26891615,0.00018314,2]
[402266552,1768638640327,-1838.85506135,0.00018314,2]
[402266553,1768638640337,-3269.07566462,0.00018314,2]
[402266554,1768638640347,-5107.93072596,0.00018314,2]
[402266555,1768638640357,-296.76859693,0.00018314,2]
[402266556,1768638640367,-3354.89066518,0.00018314,2]
[402266557,1768638640377,-439.01550123,0.00018314,2]
[402266558,1768638640387,-1756.06200491,0.00018314,2]
[402266559,1768638640398,-3951.13951104,0.00018314,2]
[402266560,1768638640410,-7355.42024539,0.00018314,2]
[402266561,1768638640420,-1887.66026746,0.00018389,5]
[402266562,1768638640430,-7550.64106986,0.00018389,5]
[402266563,1768638640441,-4345.72182382,0.00018389,5]
[402266564,1768638640451,-632.0,0.000184,2]
[402266565,1768638640462,-405.97336672,0.00018538,39]
[402266566,1768638640471,-1851.8937585,0.00018559,2]
[402266567,1768638640481,-287.395,0.00018591,2]
[402266568,1768638640491,-57502.06180444,0.000186,2]
[402266844,1768638643624,-1846.28983336,0.000186,2]
[402266951,1768639114668,309.56061532,0.0001,10]
[402266978,1768639832445,-5000.0,0.0001264,2]
[402266981,1768639832455,-5000.0,0.00012768,2]
[402266983,1768639832464,-601.0,0.00012768,2]
[402266985,1768639832475,-176.17002554,0.00012833,2]
[402266986,1768639832483,-300.0,0.00012896,2]
[402266989,1768639832494,-158.0,0.00013699,2]
[402266991,1768639832504,-158.2,0.00013699,2]
[402266992,1768639832513,-290.221234,0.00013968,2]
[402266994,1768639832523,-207.88063014,0.00014833,2]
[402266997,1768639832534,-760.28735252,0.00015,2]
[402266999,1768639832543,-524.69469904,0.00015,2]
[402267000,1768639832553,-188.101356,0.00015068,2]
[402267003,1768639832562,-204.7816067,0.00015891,2]
[402267005,1768639832572,-500.0,0.00016438,3]
[402267007,1768639832582,-516.98754424,0.00016438,3]
[402267009,1768639832591,-1043.38,0.00016438,3]
[402267011,1768639832601,-1499.21,0.00016438,3]
[402267013,1768639832610,-1019.05,0.00016438,3]
[402267015,1768639832621,-553.79,0.00016438,3]
[402267017,1768639832632,-500.0,0.00016438,3]
[402267018,1768639832642,-500.0,0.00016438,3]
[402267019,1768639832652,-1047.15,0.00016438,3]
[402267021,1768639832662,-500.0,0.00016438,3]
[402267023,1768639832672,-500.0,0.00016438,3]
[402267025,1768639832682,-2820.96,0.00016438,3]
[402267027,1768639832693,-506.71,0.00016438,3]
[402267029,1768639832702,-500.0,0.00016438,3]
[402267030,1768639832712,-500.0,0.00016438,3]
[402267032,1768639832721,-819.27,0.00016438,3]
[402267034,1768639832731,-500.0,0.00016438,3]
[402267036,1768639832740,-500.0,0.00016438,3]
[402267038,1768639832749,-531.80288578,0.00016438,3]
[402267040,1768639832758,-645.81,0.00016438,3]
[402267042,1768639832767,-589.99,0.00016438,3]
[402267044,1768639832777,-1022.05,0.00016438,3]
[402267046,1768639832786,-1006.35,0.00016438,3]
[402267047,1768639832795,-500.0,0.00016438,3]
[402267048,1768639832804,-943.63,0.00016438,3]
[402267049,1768639832813,-638.71,0.00016438,3]
[402267050,1768639832822,-500.0,0.00016438,3]
[402267051,1768639832832,-500.0,0.00016438,3]
[402267052,1768639832842,-500.0,0.00016438,3]
[402267053,1768639832852,-323.34781817,0.00016438,3]
[402267054,1768639832861,-500.0,0.00016438,3]
[402267055,1768639832871,-500.0,0.00016438,3]
[402267056,1768639832880,-500.0,0.00016438,3]
[402267057,1768639832890,-515.09013638,0.00016438,3]
[402267058,1768639832899,-500.0,0.00016438,3]
[402267059,1768639832908,-1000.0,0.00016438,2]
[402267060,1768639832918,-1517.1,0.00016438,3]
[402267061,1768639832927,-500.0,0.00016438,3]
[402267062,1768639832937,-500.0,0.00016438,3]
[402267063,1768639832946,-1350.73,0.00016438,3]
[402267064,1768639832956,-500.0,0.00016438,3]
[402267065,1768639832965,-581.49,0.00016438,3]
[402267066,1768639832976,-500.0,0.00016438,2]
[402267067,1768639832986,-547.68,0.00016438,3]
[402267068,1768639832996,-644.62,0.00016438,3]
[402267069,1768639833006,-534.23061005,0.00016438,3]
[402267070,1768639833015,-467.62939085,0.00016438,3]
[402267071,1768639833035,-32.37060915,0.00016438,3]
[402267072,1768639833045,-365.62939085,0.00016438,3]
[402267360,1768639843653,-811.58690881,0.00012514,2]
[402268963,1768640446327,184.0,8.93e-05,2]
[402268986,1768641031606,-458.23756058,0.00011093,2]
[402268987,1768641031617,-854.08839603,0.00011093,2]
[402268990,1768641031657,-3687.67404339,0.00011093,2]
[402268991,1768641031667,-242.43924457,0.00011261,2]
[402268992,1768641031677,-300.0,0.00011317,2]
[402268993,1768641031686,-420.0,0.00012432,2]
[402268994,1768641031696,-890.2089568,0.00012575,2]
[402268995,1768641031705,-286.07830859,0.00013262,2]
[402268996,1768641031715,-500.0,0.00013273,2]
[402268997,1768641031724,-587.0,0.00013657,2]
[402268998,1768641031734,-1000.0,0.00013699,2]
[402268999,1768641031744,-500.0,0.00013783,2]
[402269000,1768641031755,-608.02699516,0.00013783,2]
[402269001,1768641031765,-28687.3933162,0.00013783,2]
[402269002,1768641031777,-1000.0,0.00013821,2]
[402269003,1768641031787,-500.0,0.00014368,2]
[402269004,1768641031797,-1500.0,0.00014368,2]
[402269005,1768641031806,-2000.0,0.00014916,2]
[402269006,1768641031819,-250.0,0.00014978,2]
[402269007,1768641031829,-415.2701928,0.00015,2]
[402269008,1768641031839,-823.0,0.00015003,2]
[402269009,1768641031854,-329.71737262,0.00015262,2]
[402269010,1768641031864,-166.13,0.000154,2]
[402269011,1768641031875,-2500.0,0.00015464,2]
[402269012,1768641031884,-159.67418413,0.00015922,2]
[402269013,1768641031894,-1000.0,0.00016,2]
[402269014,1768641031904,-3000.0,0.00016012,2]
[402269015,1768641031915,-400.92755009,0.00016338,2]
[402269016,1768641031924,-500.0,0.00016342,2]
[402269017,1768641031934,-181.65393726,0.00016342,2]
[402269018,1768641031943,-500.0,0.00016342,2]
[402269019,1768641031953,-500.0,0.00016342,2]
[402269020,1768641031962,-500.0,0.00016342,2]
[402269021,1768641031972,-500.0,0.00016342,2]
[402269022,1768641031982,-500.0,0.00016342,2]
[402269023,1768641031991,-500.0,0.00016342,2]
[402269024,1768641032000,-500.0,0.00016342,2]
[402269025,1768641032010,-500.0,0.00016342,2]
[402269026,1768641032019,-500.0,0.00016342,2]
[402269027,1768641032030,-500.0,0.00016342,2]
[402269028,1768641032040,-310.71744619,0.00016342,2]
[402269029,1768641032049,-500.0,0.00016342,2]
[402269030,1768641032059,-500.0,0.00016342,2]
[402269031,1768641032068,-500.0,0.00016342,2]
[402269032,1768641032078,-436.52247225,0.00016342,2]
[402269045,1768641037712,-5000.0,0.00010982,2]
[402269046,1768641037722,-63.47752775,0.00016342,2]
[402269047,1768641037731,-551.12465881,0.00016342,2]
[402269048,1768641037741,-500.0,0.00016342,2]
[402269049,1768641037750,-500.0,0.00016342,2]
[402269050,1768641037760,-500.0,0.00016342,2]
[402269051,1768641037769,-500.0,0.00016342,2]
[402269052,1768641037778,-500.0,0.00016342,2]
[402269053,1768641037787,-631.45190587,0.00016342,2]
[402269054,1768641037799,-500.0,0.00016342,2]
[402269055,1768641037809,-500.0,0.00016342,2]
[402269056,1768641037819,-500.0,0.00016342,2]
[402269057,1768641037827,-500.0,0.00016342,2]
[402269058,1768641037837,-404.82838113,0.00016342,2]
[402269059,1768641037847,-500.0,0.00016342,2]
[402269060,1768641037856,-500.0,0.00016342,2]
[402269061,1768641037865,-2248.8590411,0.00016345,2]
[402269062,1768641037875,-1232.8343313,0.00016345,2]
[402269063,1768641037885,-9034.4925319,0.00016345,2]
[402269064,1768641037894,-151.0,0.000164,2]
[402269065,1768641037904,-1036.08497253,0.00016428,3]
[402269066,1768641037931,-2363.81502747,0.00016428,3]
[402269067,1768641037941,-1699.95,0.00016428,3]
[402269068,1768641037951,-849.97,0.00016428,3]
[402269069,1768641037960,-424.99,0.00016428,3]
[402269070,1768641037970,-212.49,0.00016428,3]
[402269071,1768641037979,-637.51,0.00016428,3]
[402269072,1768641037988,-5000.0,0.00016437,2]
[402269073,1768641037998,-261.3923341,0.00016437,2]
[402269074,1768641038008,-608.2568244,0.00016437,2]
[402269075,1768641038018,-609.91544623,0.00016437,2]
[402269076,1768641038027,-436.72021913,0.00016437,2]
[402269077,1768641038037,-520.22,0.00016438,3]
[402269078,1768641038047,-818.49,0.00016438,3]
[402269079,1768641038056,-977.67,0.00016438,3]
[402269080,1768641038065,-727.95,0.00016438,3]
[402269081,1768641038075,-619.01,0.00016438,3]
[402269082,1768641038085,-500.0,0.00016438,3]
[402269083,1768641038094,-444.83809808,0.00016438,3]
[402269084,1768641038103,-500.0,0.00016438,3]
[402269085,1768641038112,-500.0,0.00016438,3]
[402269086,1768641038121,-500.0,0.00016438,2]
[402269087,1768641038131,-500.0,0.00016438,3]
[402269088,1768641038140,-643.47053412,0.00016438,2]
[402269089,1768641038150,-500.0,0.00016438,3]
[402269090,1768641038159,-500.0,0.00016438,3]
[402269091,1768641038169,-500.0,0.00016438,3]
[402269092,1768641038179,-500.0,0.00016438,3]
[402269093,1768641038188,-500.0,0.00016438,3]
[402269094,1768641038198,-600.0,0.00016438,2]
[402269095,1768641038207,-172.631544,0.00016438,3]
[402269096,1768641038216,-158.856128,0.00016438,3]
[402269097,1768641038226,-944.2,0.00016438,3]
[402269098,1768641038235,-774.73,0.00016438,3]
[402269099,1768641038246,-630.85,0.00016438,3]
[402269100,1768641038255,-1581.13,0.00016438,3]
[402269101,1768641038265,-500.0,0.00016438,3]
[402269102,1768641038275,-500.0,0.00016438,3]
[402269103,1768641038284,-500.0,0.00016438,3]
[402269104,1768641038293,-500.0,0.00016438,3]
[402269105,1768641038303,-771.05,0.00016438,3]
[402269106,1768641038313,-500.0,0.00016438,2]
[402269107,1768641038322,-500.0,0.00016438,3]
[402269108,1768641038332,-500.0,0.00016438,3]
[402269109,1768641038342,-1076.17,0.00016438,3]
[402269110,1768641038351,-500.0,0.00016438,3]
[402269111,1768641038360,-500.0,0.00016438,3]
[402269112,1768641038370,-523.35,0.00016438,3]
[402269113,1768641038379,-1132.82,0.00016438,3]
[402269114,1768641038388,-563.8,0.00016438,3]
[402269115,1768641038398,-500.0,0.00016438,3]
[402269116,1768641038407,-500.0,0.00016438,3]
[402269117,1768641038417,-500.0,0.00016438,3]
[402269118,1768641038426,-1366.17,0.00016438,3]
[402269119,1768641038435,-535.22,0.00016438,3]
[402269120,1768641038445,-626.22,0.00016438,3]
[402269121,1768641038454,-598.93,0.00016438,3]
[402269122,1768641038464,-500.0,0.00016438,3]
[402269123,1768641038473,-500.0,0.00016438,3]